bitfinex/quotes_ETHUSD_20220311
["timestamp","ask_amount","ask_price","bid_price","bid_amount"]
[1646969913507,0.9841979,2539.8,2539.6,0.06923469]
[1646969913705,0.9841979,2539.8,2539.6,1.05326469]
[1646969914301,0.3,2539.7,2539.6,0.06923469]
[1646969914802,0.3,2539.7,2539.4,0.07398104]
[1646969915003,2.2683796,2539.7,2539.5,0.00104097]
[1646969916042,0.98421,2539.6,2539.4,0.07398104]
[1646969916242,0.98421,2539.6,2539.5,0.00104099]
[1646969917345,1.9683803,2539.6,2539.4,0.07504849]
[1646969917744,0.3,2539.5,2539.4,0.07504849]
[1646969918347,0.3,2539.5,2539.4,0.07398104]
[1646969920800,2.9518774,2540.2,2539.6,0.98394]
[1646969921197,0.3,2540.1,2539.6,0.98394]
[1646969922102,1.28401,2540.1,2539.6,0.98394]
[1646969922302,2.2679692,2540.1,2539.7,0.00106137]
[1646969922505,2.2679692,2540.1,2539.8,0.984]
[1646969923448,2.2679692,2540.1,2539.8,0.98506133]
[1646969924447,2.2679692,2540.1,2539.8,0.984]
[1646969924649,3.2519692,2540.1,2539.8,0.98506267]
[1646969925550,3.2519692,2540.1,2539.8,0.984]
[1646969925750,3.2519692,2540.1,2539.8,0.98506267]
[1646969926156,3.5,2540.0,2539.8,0.00106267]
[1646969926354,5.52185282,2540.0,2539.8,0.00106267]
[1646969926613,2.32185282,2540.0,2539.8,0.00106267]
[1646969926804,2.32056293,2540.0,2539.8,0.00106267]
[1646969927002,0.98441,2539.8,2539.2,1.19948686]
[1646969927202,0.3,2539.6,2539.2,0.07038686]
[1646969927402,4.2374301,2539.6,2539.2,0.07038686]
[1646969928204,0.9843551,2539.5,2539.3,0.0010626]
[1646969928512,0.98436,2539.4,2539.3,0.0010626]
[1646969928803,1.28436,2539.4,2539.3,0.0010626]
[1646969929206,1.28436,2539.4,2539.0,2.1921]
[1646969929404,0.9844023,2539.3,2539.2,0.00106262]
[1646969929607,2.9531523,2539.3,2539.2,0.00106262]
[1646969930444,0.9844023,2539.3,2539.0,1.7453]
[1646969930646,0.9844023,2539.3,2539.1,0.00106266]
[1646969931648,0.9844023,2539.3,2539.1,1.0]
[1646969931848,0.9844023,2539.3,2539.1,1.00106275]
[1646969932048,0.98436,2539.2,2539.1,1.00106275]
[1646969932448,1.28436,2539.2,2539.1,1.00106275]
[1646969932849,1.28436,2539.2,2539.1,1.0]
[1646969934496,2.2687623,2539.3,2539.1,1.0]
[1646969934998,1.2844023,2539.3,2539.1,1.0]
[1646969935497,1.2844023,2539.3,2539.1,1.00106273]
[1646969936496,1.2844023,2539.3,2539.1,1.0]
[1646969936703,1.2844023,2539.3,2539.1,1.00106273]
[1646969937600,1.2844023,2539.3,2539.1,1.0]
[1646969938047,1.2844023,2539.3,2539.1,1.00106273]
[1646969938851,1.2844023,2539.3,2539.1,1.0]
[1646969939047,1.2844023,2539.3,2539.1,1.00106274]
[1646969940054,1.2844023,2539.3,2539.1,1.0]
[1646969940254,1.2844023,2539.3,2539.2,0.08854259]
[1646969942398,0.3,2539.3,2539.2,0.08854259]
[1646969942801,2.2685306,2539.4,2539.2,1.07280259]
[1646969942999,4.2371706,2539.4,2539.2,0.98426]
[1646969943200,4.2371706,2539.4,2539.1,1.00106272]
[1646969943599,1.96863,2539.3,2539.1,1.0]
[1646969944003,1.96863,2539.3,2539.1,1.00106272]
[1646969944400,1.96863,2539.3,2539.1,1.98538272]
[1646969944800,1.96863,2539.3,2539.1,1.98432]
[1646969945201,1.96863,2539.3,2539.1,1.98538274]
[1646969945643,1.96863,2539.3,2539.1,1.00106274]
[1646969946044,1.96863,2539.3,2539.1,1.0]
[1646969946244,1.96863,2539.3,2539.1,1.00106274]
[1646969947251,1.96863,2539.3,2539.1,1.0]
[1646969948251,1.96773142,2539.3,2539.1,1.98433]
[1646969949999,1.96773142,2539.3,2539.1,1.9856292]
[1646969950804,1.96773142,2539.3,2539.1,1.98433]
[1646969951207,1.96773142,2539.3,2539.1,1.9856292]
[1646969952007,1.96773142,2539.3,2539.1,1.98433]
[1646969952409,1.96773142,2539.3,2539.1,1.9856292]
[1646969953248,1.96773142,2539.3,2539.1,1.98433]
[1646969953646,1.96773142,2539.3,2539.1,1.9856292]
[1646969954455,1.96773142,2539.3,2539.1,1.98433]
[1646969954650,1.96773142,2539.3,2539.1,1.9856292]
[1646969955653,1.96773142,2539.3,2539.1,1.98433]
[1646969956056,1.96773142,2539.3,2539.1,1.9856292]
[1646969956801,1.96773142,2539.3,2539.1,1.98433]
[1646969957005,4.2371706,2539.4,2539.1,1.98433]
[1646969957202,4.2371706,2539.4,2539.1,1.9856292]
[1646969957403,2.2685306,2539.4,2539.1,1.9856292]
[1646969958003,2.2685306,2539.4,2539.1,1.98433]
[1646969958205,2.2685745,2539.5,2539.1,1.98433]
[1646969958405,2.2685745,2539.5,2539.1,1.98549925]
[1646969958907,1.2842545,2539.5,2539.1,1.98549925]
[1646969959306,1.2842545,2539.5,2539.1,1.98433]
[1646969959510,1.2842545,2539.5,2539.2,0.00116923]
[1646969959706,1.2842545,2539.5,2539.3,0.98426]
[1646969960864,1.2842545,2539.5,2539.3,0.98542918]
[1646969961264,0.9842545,2539.5,2539.3,0.98542918]
[1646969961663,0.9842545,2539.5,2539.3,0.98426]
[1646969961863,0.9842545,2539.5,2539.3,0.98529895]
[1646969962468,0.05003375,2539.9,2539.4,3.5]
[1646969962667,0.05212639,2540.2,2539.5,0.98406]
[1646969962868,0.04465098,2540.5,2539.6,3.5]
[1646969963068,0.04465098,2540.5,2539.6,4.221]
[1646969963266,0.04465098,2540.5,2539.6,5.221]
[1646969963469,0.04548509,2540.7,2539.6,5.221]
[1646969963666,0.9401607,2540.5,2539.7,0.91545071]
[1646969963868,0.9401607,2540.5,2539.8,4.48386]
[1646969964107,1.02934509,2540.7,2539.8,4.68066]
[1646969964108,2.01325509,2540.7,2539.8,4.68066]
[1646969964300,0.05330455,2540.6,2540.0,0.00103866]
[1646969964499,0.0424137,2540.9,2540.0,0.19783866]
[1646969964902,3.21197,2541.3,2540.1,0.98371]
[1646969964903,1.03014678,2541.1,2540.1,0.98371]
[1646969965102,0.98396,2540.8,2540.1,0.98371]
[1646969965301,0.0474119,2540.7,2540.1,0.98371]
[1646969965500,0.9839361,2540.6,2540.1,0.98371]
[1646969965700,1.9678721,2540.7,2540.5,0.00106483]
[1646969966300,0.3,2540.6,2540.5,0.00106483]
[1646969966505,0.98397,2540.5,2540.0,2.96741]
[1646969966705,2.2679567,2540.4,2540.0,1.96741]
[1646969966905,2.2679567,2540.4,2540.0,6.46741]
[1646969967104,2.2679567,2540.4,2540.0,2.96741]
[1646969967951,3.2519367,2540.4,2540.1,0.00106499]
[1646969968152,0.9839672,2540.3,2540.2,0.984]
[1646969968556,0.9839672,2540.3,2540.2,1.984]
[1646969969356,0.98280101,2540.3,2540.2,1.984]
[1646969969557,0.3,2540.4,2540.2,1.984]
[1646969969861,0.3,2540.4,2540.3,1.0]
[1646969973710,1.9676142,2540.7,2540.3,1.0]
[1646969973711,0.3,2540.6,2540.3,1.0]
[1646969973912,0.3,2540.6,2540.4,0.98382]
[1646969974313,0.88885176,2540.5,2540.4,0.98382]
[1646969974712,0.88885176,2540.5,2540.3,2.96764]
[1646969974917,1.87282346,2540.5,2540.3,1.0]
[1646969975116,0.3,2540.4,2540.3,1.00105969]
[1646969976147,0.3,2540.4,2540.3,1.0]
[1646969978553,0.3,2540.4,2540.3,4.5]
[1646969978755,0.3,2540.6,2540.3,1.0]
[1646969978954,1.1171729,2540.9,2540.4,0.98371]
[1646969979209,1.9673909,2541.1,2540.5,3.5]
[1646969979414,0.04428761,2541.2,2540.5,3.5]
[1646969979610,0.04428761,2541.2,2540.6,0.1967]
[1646969980011,0.04428761,2541.2,2540.7,0.00105988]
[1646969980410,0.04428761,2541.2,2540.8,0.98355]
[1646969981114,0.04428761,2541.2,2540.9,0.0010598]
[1646969981810,0.3,2541.3,2540.9,0.0010598]
[1646969982210,0.3,2541.3,2541.0,0.98352]
[1646969983255,1.28361,2541.3,2541.0,0.98352]
[1646969983452,0.05047028,2541.2,2540.6,2.96743]
[1646969983653,0.9837901,2541.1,2541.0,0.00105976]
[1646969983851,1.2837901,2541.1,2541.0,0.00105976]
[1646969984455,1.2837901,2541.1,2540.6,1.96743]
[1646969984653,0.98374,2540.8,2540.6,1.96743]
[1646969984852,1.28374,2540.8,2540.6,1.96743]
[1646969986054,1.28374,2540.8,2540.6,1.96848995]
[1646969986907,0.3,2540.8,2540.6,1.96743]
[1646969987208,0.9836284,2541.1,2540.6,1.96849259]
[1646969987605,1.2836284,2541.1,2540.6,1.96849259]
[1646969988008,0.98365,2541.0,2540.6,1.96849259]
[1646969988206,0.3,2540.9,2540.6,1.96743]
[1646969988405,0.3,2540.9,2540.7,0.00106253]
[1646969988606,0.3,2540.9,2540.7,0.98465253]
[1646969988807,0.05073592,2541.2,2540.7,0.98465253]
[1646969989007,3.9344499,2541.3,2540.7,1.98465253]
[1646969989206,3.9344499,2541.3,2540.7,0.98465253]
[1646969989406,1.9673612,2541.2,2540.7,0.98359]
[1646969989610,1.9673612,2541.2,2540.8,0.00106249]
[1646969989806,1.9673612,2541.2,2540.9,0.98363]
[1646969990007,2.9509212,2541.2,2540.9,0.98363]
[1646969990351,3.2509212,2541.2,2540.9,0.98363]
[1646969990751,3.2509212,2541.2,2540.9,0.9846892]
[1646969990951,3.2498877,2541.2,2540.9,0.9846892]
[1646969991353,3.2498877,2541.2,2540.9,0.0010592]
[1646969991554,0.9836754,2541.1,2541.0,0.98368]
[1646969991754,1.03793216,2541.1,2541.0,0.98368]
[1646969993161,0.05425676,2541.1,2541.0,0.98368]
[1646969993357,0.3,2541.2,2541.0,0.98368]
[1646969993758,1.2835743,2541.3,2541.0,0.98368]
[1646969995121,2.2671643,2541.3,2541.0,0.98368]
[1646969995722,2.21654165,2541.3,2541.0,0.98368]
[1646969996118,2.13952117,2541.3,2541.0,0.98368]
[1646969996820,2.13952117,2541.3,2541.0,0.98501368]
[1646969997851,2.13952117,2541.3,2541.0,0.98368]
[1646969998051,2.13952117,2541.3,2541.0,0.98501368]
[1646969998459,2.13952117,2541.3,2541.0,0.98381594]
[1646969998857,2.13952117,2541.3,2541.0,0.98248226]
[1646969999262,2.13952117,2541.3,2541.0,0.98381594]
[1646969999959,2.13952117,2541.3,2541.0,0.00133368]
[1646970000158,2.13952117,2541.3,2540.8,2.96726]
[1646970000362,2.13952117,2541.3,2541.0,0.00133368]
[1646970001161,0.04435006,2541.1,2541.0,0.00133368]
[1646970001360,0.04435006,2541.1,2540.6,1.96744]
[1646970001610,0.9838262,2541.0,2540.6,1.96744]
[1646970001806,1.2838262,2541.0,2540.6,1.96744]
[1646970003208,3.2514562,2541.0,2540.6,1.96744]
[1646970004208,1.2838262,2541.0,2540.6,1.96744]
[1646970005211,1.2838262,2541.0,2540.7,0.0013356]
[1646970005450,1.2838262,2541.0,2540.8,0.98366]
[1646970006450,1.2838262,2541.0,2540.8,0.98499554]
[1646970006656,0.9838262,2541.0,2540.8,0.98499554]
[1646970007057,0.98381,2541.1,2540.8,0.98499554]
[1646970007256,0.98381,2541.1,2540.8,0.98366]
[1646970007756,0.98381,2541.1,2540.8,0.98499554]
[1646970007957,0.3,2541.0,2540.8,0.98499554]
[1646970008561,0.3,2541.0,2540.8,0.98366]
[1646970008958,0.3,2541.0,2540.8,0.98499554]
[1646970009800,0.3,2541.0,2540.8,0.98366]
[1646970010003,0.3,2541.0,2540.8,0.98486199]
[1646970011010,1.2836567,2541.0,2540.8,0.98366]
[1646970011212,1.2836567,2541.0,2540.8,0.98486199]
[1646970012109,1.2836567,2541.0,2540.8,0.98366]
[1646970012510,1.2836567,2541.0,2540.8,0.98486199]
[1646970013355,1.2836567,2541.0,2540.8,0.98366]
[1646970013553,1.2836567,2541.0,2540.8,0.98474012]
[1646970014558,1.2836567,2541.0,2540.8,0.98366]
[1646970014766,1.08135293,2541.4,2540.8,0.98366]
[1646970014767,0.3939,2542.3,2541.2,4.06209464]
[1646970014967,0.3935,2543.4,2541.8,3.0]
[1646970015167,3.5,2543.3,2542.2,0.01232045]
[1646970015364,3.5,2543.3,2542.3,0.07265682]
[1646970015365,0.98304,2543.2,2542.3,0.07265682]
[1646970015561,2.94878,2543.8,2542.3,0.15359147]
[1646970015765,0.9539129,2543.1,2542.3,3.29600184]
[1646970015965,0.9539129,2543.1,2542.4,0.08619818]
[1646970016368,0.23805098,2543.7,2542.4,0.08619818]
[1646970016805,0.98297,2543.2,2542.4,0.08619818]
[1646970017408,0.98297,2543.2,2542.5,0.98289]
[1646970017609,0.99210038,2543.1,2542.6,0.08076994]
[1646970018008,0.98297,2543.0,2542.6,0.08076994]
[1646970018310,1.96636,2542.9,2542.3,1.07910174]
[1646970018808,1.96636,2542.9,2542.3,0.07910174]
[1646970018809,2.26636,2542.9,2542.3,0.07910174]
[1646970019013,1.08809996,2542.4,2542.3,2.04541174]
[1646970019208,1.38809996,2542.4,2542.3,2.04541174]
[1646970019408,0.3,2542.4,2542.3,2.04541174]
[1646970019606,3.24969,2542.6,2542.3,2.04541174]
[1646970019808,0.3,2542.6,2542.3,2.04541174]
[1646970020007,0.05218124,2543.3,2542.4,3.5829338]
[1646970020207,0.05218124,2543.3,2542.4,6.5312538]
[1646970020453,0.9828,2543.7,2542.5,0.07439534]
[1646970020454,1.03409709,2543.7,2542.5,0.07439534]
[1646970020660,0.05129709,2543.7,2542.6,0.1965]
[1646970020859,0.05435861,2544.0,2542.6,0.1965]
[1646970021258,0.05435861,2544.0,2542.6,3.77675672]
[1646970021461,1.96548,2543.9,2542.8,0.84748036]
[1646970021665,4.67265575,2544.1,2542.9,6.72446841]
[1646970021861,3.4476,2544.1,2543.3,1.0]
[1646970022061,9.491705,2544.6,2543.4,3.56893111]
[1646970022062,0.00245575,2544.3,2543.4,3.56893111]
[1646970022262,0.00245575,2544.5,2543.5,0.27900192]
[1646970022463,7.33,2544.6,2543.5,0.27900192]
[1646970022660,7.33,2544.6,2543.5,0.80027372]
[1646970022861,7.33,2544.6,2543.8,0.98216]
[1646970023064,7.33,2544.6,2543.9,3.76651419]
[1646970023260,7.33,2544.6,2544.0,0.07087702]
[1646970023459,7.33,2544.6,2544.1,0.1965]
[1646970023861,7.33,2544.6,2544.1,1.1965]
[1646970024132,7.33,2544.6,2544.2,3.58967514]
[1646970024327,7.33,2544.6,2544.3,0.06952854]
[1646970024520,0.01848098,2545.2,2544.3,0.06952854]
[1646970024725,0.01848098,2545.2,2544.6,1.0]
[1646970024726,7.34848098,2545.2,2544.6,1.0]
[1646970024922,7.34848098,2545.2,2544.7,4.57484466]
[1646970025122,7.34848098,2545.2,2544.8,0.08995448]
[1646970025329,7.34848098,2545.2,2544.9,0.98185]
[1646970025525,7.34848098,2545.2,2545.0,3.56896765]
[1646970025725,7.33369693,2545.2,2545.1,0.08220649]
[1646970026325,7.33369693,2545.2,2545.1,3.04578649]
[1646970026725,7.33,2545.2,2545.1,4.04578649]
[1646970026928,7.33,2545.2,2545.1,3.04578649]
[1646970027124,7.33,2545.2,2545.1,4.04578649]
[1646970027952,7.33,2545.2,2545.1,7.54578649]
[1646970029358,1.43985,2545.2,2545.1,7.54578649]
[1646970029562,1.43985,2545.2,2545.1,8.54578649]
[1646970029759,0.00352027,2545.3,2545.1,8.54578649]
[1646970029957,0.00352027,2545.3,2545.2,0.08453324]
[1646970030158,0.00352027,2545.3,2545.2,1.06626324]
[1646970030357,0.83306205,2545.7,2545.3,0.07767008]
[1646970030662,0.01407893,2545.7,2545.4,1.96346]
[1646970030861,0.01407893,2545.7,2545.5,0.08759095]
[1646970031259,0.01407893,2545.7,2545.6,0.98172]
[1646970031629,0.0035308,2545.7,2545.6,0.98172]
[1646970032639,2.25729366,2545.8,2545.6,0.98172]
[1646970032842,2.26078317,2545.8,2545.6,0.98172]
[1646970033040,1.72787724,2545.5,2545.2,1.96381]
[1646970033240,2.02787724,2545.5,2545.2,1.96381]
[1646970034038,0.96970998,2545.3,2545.2,1.96381]
[1646970034240,1.26970998,2545.3,2545.2,1.96381]
[1646970034844,1.26970998,2545.3,2545.1,1.9819]
[1646970035040,1.26970998,2545.3,2545.1,0.9819]
[1646970035453,1.26970998,2545.3,2544.9,0.08431478]
[1646970035454,3.23390998,2545.3,2544.9,0.08431478]
[1646970035658,3.5,2545.2,2544.5,0.08965725]
[1646970035858,3.5,2545.2,2544.0,4.0738]
[1646970035859,0.98225,2545.1,2544.3,0.08315341]
[1646970036158,0.98228,2544.9,2544.3,0.08315341]
[1646970036358,1.28228,2544.9,2544.3,0.08315341]
[1646970036562,1.03077305,2544.7,2544.3,0.08315341]
[1646970036757,1.03077305,2544.7,2544.4,1.96443]
[1646970036959,1.33077305,2544.7,2544.4,1.96443]
[1646970037158,2.31306305,2544.7,2544.4,1.96443]
[1646970037558,2.31306305,2544.7,2544.0,0.07364308]
[1646970038359,2.31306305,2544.7,2544.2,1.96457]
[1646970038360,1.88200998,2544.3,2544.2,1.96457]
[1646970038562,0.3,2544.2,2544.0,0.07364308]
[1646970038763,0.3,2544.2,2543.7,0.14448973]
[1646970039803,0.3,2544.2,2544.0,1.96472]
[1646970040205,0.05018593,2544.7,2544.1,0.07214864]
[1646970040206,0.00245575,2544.7,2544.1,0.07214864]
[1646970040406,1.16765005,2545.2,2544.1,0.07214864]
[1646970040407,0.00245575,2544.9,2544.1,0.07214864]
[1646970040606,7.63,2544.8,2544.1,0.07214864]
[1646970041309,8.54714771,2544.8,2544.1,0.07214864]
[1646970041508,8.54714771,2544.8,2544.1,1.07214864]
[1646970041708,8.54714771,2544.8,2544.3,0.982]
[1646970041908,8.54714771,2544.8,2544.4,0.08322912]
[1646970042207,9.52928771,2544.8,2544.4,0.08322912]
[1646970043567,9.52928771,2544.8,2544.5,0.98207]
[1646970044367,8.61214,2544.8,2544.5,0.98207]
[1646970044568,7.63,2544.8,2544.5,0.98207]
[1646970045368,8.67952201,2544.8,2544.5,0.98207]
[1646970046813,1.34952201,2544.8,2544.5,0.98207]
[1646970047009,0.3,2544.8,2544.5,0.98207]
[1646970047212,1.96409,2545.2,2544.7,0.98196]
[1646970047409,0.01757399,2545.2,2544.9,1.0]
[1646970047612,0.01757399,2545.2,2545.0,0.0766801]
[1646970048013,0.8489915,2545.1,2545.0,0.0766801]
[1646970048213,0.8489915,2545.1,2544.6,0.08757206]
[1646970048514,3.5,2545.3,2544.6,0.08757206]
[1646970048712,0.00388067,2545.2,2544.6,0.08757206]
[1646970049513,3.988998,2544.8,2544.6,0.08757206]
[1646970049713,4.288998,2544.8,2544.6,0.08757206]
[1646970049912,4.2913733,2544.8,2544.6,0.08757206]
[1646970050113,4.2913733,2544.8,2544.7,0.98219]
[1646970050365,3.3092033,2544.8,2544.7,0.98219]
[1646970050553,2.3270333,2544.8,2544.7,0.98219]
[1646970050753,1.3448671,2544.8,2544.7,0.98219]
[1646970051155,0.3023753,2544.8,2544.7,0.98219]
[1646970051554,0.0023753,2544.8,2544.7,0.98219]
[1646970051756,0.3023753,2544.8,2544.7,0.98219]
[1646970051958,0.0023753,2544.8,2544.7,0.98219]
[1646970053256,1.73033299,2545.5,2544.7,0.98219]
[1646970053455,0.00351583,2545.2,2544.7,0.98219]
[1646970053857,0.00351583,2545.2,2545.1,1.0]
[1646970054101,0.00351583,2545.2,2545.1,2.98176]
[1646970054303,1.72787724,2545.5,2545.1,3.98176]
[1646970054802,0.00351626,2545.3,2545.1,3.98176]
[1646970055104,0.00351626,2545.3,2545.1,1.98176]
[1646970055302,0.00351626,2545.3,2545.2,2.0]
[1646970055505,4.54321232,2545.5,2545.2,2.0]
[1646970055708,4.54321232,2545.5,2545.3,0.98189]
[1646970056302,4.54321232,2545.5,2545.3,1.98189]
[1646970056502,3.69167254,2545.5,2545.3,2.98189]
[1646970056705,3.69167254,2545.5,2545.3,3.98189]
[1646970057106,3.69517966,2545.5,2545.3,3.98189]
[1646970057306,1.73138436,2545.5,2545.3,3.98189]
[1646970057959,1.72787724,2545.5,2545.3,3.98189]
[1646970058158,1.73138436,2545.5,2545.3,3.98189]
[1646970058957,1.73138436,2545.5,2545.3,2.98189]
[1646970059157,1.73138436,2545.5,2545.4,1.0]
[1646970059158,1.72787724,2545.5,2545.4,1.0]
[1646970059559,1.73181655,2545.5,2545.4,1.0]
[1646970060359,1.72787724,2545.5,2545.4,1.0]
[1646970061161,2.02787724,2545.5,2545.4,1.0]
[1646970062216,3.2,2545.3,2544.2,3.92756]
[1646970062417,0.9822,2545.1,2544.4,2.3868]
[1646970062712,0.9822,2545.1,2544.2,0.075501]
[1646970062915,1.09200604,2544.5,2544.2,0.075501]
[1646970063313,0.3,2544.5,2544.3,1.96448]
[1646970063516,0.00245575,2545.1,2544.3,1.96448]
[1646970063714,0.00595934,2545.2,2544.3,2.03500539]
[1646970063912,0.06574811,2545.3,2544.3,2.03500539]
[1646970063913,0.05173412,2545.3,2544.3,2.03500539]
[1646970064114,0.05173412,2545.3,2544.3,2.41020539]
[1646970064413,1.07426906,2544.9,2544.3,2.41020539]
[1646970064612,2.05635906,2544.9,2544.3,2.41020539]
[1646970064814,0.9821199,2544.8,2544.3,2.41020539]
[1646970065757,0.9821199,2544.8,2544.3,5.46448]
[1646970065958,0.9821199,2544.8,2544.4,0.083765]
[1646970066160,1.07426906,2544.9,2544.5,0.9821]
[1646970066357,1.07426906,2544.9,2544.6,0.3744]
[1646970066559,1.07426906,2544.9,2544.6,2.33858]
[1646970066560,1.37426906,2544.9,2544.6,2.33858]
[1646970067161,1.07426906,2544.9,2544.6,1.96418]
[1646970067364,1.37426906,2544.9,2544.7,0.98209]
[1646970067564,1.37426906,2544.9,2544.7,1.35649]
[1646970068167,1.07426906,2544.9,2544.7,1.35649]
[1646970068567,1.37426906,2544.9,2544.7,0.98209]
[1646970068769,1.37426906,2544.9,2544.7,1.35649]
[1646970068966,1.02784663,2545.2,2544.7,1.35649]
[1646970069230,0.00393696,2545.2,2544.7,1.35649]
[1646970070023,0.96604261,2545.3,2544.7,4.85649]
[1646970070222,0.96604261,2545.3,2544.7,1.98209]
[1646970070426,0.00393716,2545.2,2544.8,0.3744]
[1646970070623,0.00393716,2545.2,2544.9,0.98209]
[1646970070624,0.98208,2545.1,2544.9,0.98209]
[1646970071928,1.964196,2545.1,2544.9,0.98209]
[1646970072125,1.964196,2545.1,2544.8,0.3744]
[1646970072325,1.964196,2545.1,2544.8,1.35653]
[1646970072527,0.3,2545.0,2544.8,1.35653]
[1646970072956,1.10198541,2544.9,2544.8,1.35653]
[1646970074359,1.10198541,2544.9,2544.8,0.3744]
[1646970074558,1.40198541,2544.9,2544.4,0.98228]
[1646970074759,0.05076235,2544.7,2544.3,0.3744]
[1646970074963,0.05076235,2544.7,2544.1,4.02002848]
[1646970075162,2.01552235,2544.7,2544.1,1.07371848]
[1646970075363,0.9824163,2544.5,2544.1,0.07371848]
[1646970075562,5.02960232,2544.5,2544.1,0.07371848]
[1646970075765,4.04718602,2544.5,2543.8,1.96481]
[1646970075964,0.3,2544.4,2543.8,1.96481]
[1646970076161,1.28255,2544.4,2543.7,0.08647911]
[1646970076362,0.9825496,2544.2,2543.7,0.08647911]
[1646970076607,0.98256,2544.1,2543.7,0.08647911]
[1646970076809,0.98256,2544.1,2543.7,1.06900911]
[1646970077609,2.06372626,2544.1,2543.7,1.06900911]
[1646970078009,3.04628626,2544.1,2543.7,1.06900911]
[1646970078410,3.34628626,2544.1,2543.6,1.96499]
[1646970078712,2.94784,2543.9,2543.6,1.96499]
[1646970079114,0.9826,2543.8,2543.6,1.96499]
[1646970079311,1.03497996,2543.7,2543.6,1.96499]
[1646970080115,0.9826,2543.8,2543.6,1.96499]
[1646970080371,0.98252,2544.4,2543.6,2.04848655]
[1646970080561,0.98252,2544.4,2543.6,2.04127541]
[1646970080761,1.28252,2544.4,2543.6,2.04127541]
[1646970081161,0.91931731,2544.0,2543.6,2.04127541]
[1646970081564,1.21931731,2544.0,2543.6,2.04127541]
[1646970082167,1.21931731,2544.0,2543.6,1.96499]
[1646970083066,0.98265,2543.9,2543.6,1.96499]
[1646970083266,0.3,2543.8,2543.6,1.96499]
[1646970083471,0.0450568,2544.1,2543.6,1.96499]
[1646970083667,0.3,2544.1,2543.6,1.96499]
[1646970083870,0.04240319,2544.5,2543.6,1.96499]
[1646970084508,1.04018161,2544.2,2543.6,1.96499]
[1646970084808,0.05071148,2544.1,2543.6,1.96499]
[1646970086414,0.04535361,2544.7,2544.1,0.0015441]
[1646970086610,0.04289786,2544.7,2544.1,0.7353]
[1646970086816,0.04289786,2544.7,2544.1,2.69987]
[1646970087213,0.04289786,2544.7,2544.1,3.69987]
[1646970087514,1.04534372,2544.9,2544.2,1.0658783]
[1646970087712,1.04534372,2544.9,2544.4,0.074171]
[1646970089371,1.04534372,2544.9,2544.4,1.056331]
[1646970089767,1.34534372,2544.9,2544.4,1.056331]
[1646970090168,2.32760372,2544.9,2544.4,1.056331]
[1646970090869,4.29224832,2544.9,2544.4,0.98216]
[1646970091914,1.96475,2544.8,2544.4,0.98216]
[1646970092113,1.07323166,2544.4,2544.3,2.96431]
[1646970092714,1.37323166,2544.4,2544.3,1.96431]
[1646970093117,2.35575166,2544.4,2544.0,1.96486]
[1646970094419,0.98251,2544.3,2544.0,1.96486]
[1646970094815,0.3,2544.2,2544.0,1.96486]
[1646970095365,0.05161142,2544.5,2544.0,5.46486]
[1646970095366,0.3,2544.5,2544.0,5.46486]
[1646970095554,0.30245575,2544.8,2544.0,1.96486]
[1646970095756,0.3,2544.8,2544.0,2.96486]
[1646970095955,0.3,2544.8,2544.0,1.96486]
[1646970096156,2.31070373,2544.9,2544.0,2.96486]
[1646970096357,0.81600966,2544.4,2544.0,1.96486]
[1646970096660,1.11600966,2544.4,2544.0,2.96486]
[1646970097066,1.11600966,2544.4,2544.1,0.08747265]
[1646970097067,0.3,2544.4,2544.1,0.08747265]
[1646970097261,1.02411724,2544.8,2544.1,0.08747265]
[1646970097465,0.02170472,2545.2,2544.1,4.2767]
[1646970097668,0.00245575,2545.2,2544.5,0.08116465]
[1646970097864,0.00245575,2545.3,2544.6,0.07413119]
[1646970098065,0.01929333,2545.2,2544.6,1.05621119]
[1646970098260,0.01929333,2545.2,2544.7,3.5]
[1646970098462,0.01929333,2545.2,2544.8,0.08388679]
[1646970098865,1.72787724,2545.5,2544.8,0.08388679]
[1646970099106,0.00385938,2545.2,2544.9,1.0]
[1646970099306,0.00385938,2545.2,2545.0,1.26060029]
[1646970099505,0.00385938,2545.2,2545.1,0.08017565]
[1646970099709,0.00385938,2545.2,2545.1,3.58017565]
[1646970099904,0.00385938,2545.2,2545.1,4.58017565]
[1646970100114,1.72787724,2545.5,2545.1,4.58017565]
[1646970100311,1.72787724,2545.5,2545.2,0.08550431]
[1646970100312,0.00385946,2545.3,2545.2,0.08550431]
[1646970100514,0.00385946,2545.3,2545.2,1.06747431]
[1646970100913,0.00385946,2545.3,2544.8,1.96422]
[1646970101316,0.3,2545.5,2544.8,1.96422]
[1646970101516,0.00385747,2545.2,2545.0,0.98214]
[1646970102517,0.04987115,2545.6,2545.0,0.98214]
[1646970102717,0.00385748,2545.2,2545.0,0.98214]
[1646970103160,0.00385748,2545.2,2545.0,1.28214]
[1646970103363,0.00385748,2545.2,2545.1,1.96367]
[1646970103563,0.01542762,2545.6,2545.3,0.08631734]
[1646970103764,1.04007648,2545.7,2545.3,3.58631734]
[1646970103765,1.03762073,2545.7,2545.3,3.58631734]
[1646970103965,0.01542762,2545.6,2545.3,0.08631734]
[1646970104169,0.87643721,2546.0,2545.3,0.08631734]
[1646970104367,0.0188899,2546.7,2545.3,0.7777]
[1646970104368,0.00245575,2546.3,2545.3,0.7777]
[1646970104567,0.3932,2546.6,2545.3,0.7777]
[1646970104568,0.00245575,2546.5,2545.8,2.03752475]
[1646970104769,0.0451858,2546.5,2545.8,1.96324]
[1646970104974,3.5,2546.5,2545.9,0.0801986]
[1646970105168,1.06728807,2546.1,2545.9,0.0801986]
[1646970105467,1.06728807,2546.1,2546.0,0.98176]
[1646970105864,1.06728807,2546.1,2545.9,0.0801986]
[1646970106264,3.03110807,2546.1,2545.7,0.08729401]
[1646970107115,4.01289807,2546.1,2545.8,0.98182]
[1646970107414,4.01289807,2546.1,2545.9,0.08497535]
[1646970107617,0.00395251,2546.0,2545.7,0.0759362]
[1646970108214,0.98585251,2546.0,2545.7,0.0759362]
[1646970108414,0.98585251,2546.0,2545.7,1.0577762]
[1646970108614,1.06728807,2546.1,2545.8,0.07771386]
[1646970109017,0.00395252,2546.0,2545.8,0.07771386]
[1646970109415,0.00395252,2546.0,2545.9,0.98176]
[1646970109816,1.06728807,2546.1,2545.9,0.98176]